bitfinex/quotes_ETHUSD_20241101
["timestamp","ask_amount","ask_price","bid_price","bid_amount"]
[1730457482036,3.97409,2516.3,2515.7,0.78]
[1730457482037,3.97396,2516.4,2515.7,0.78]
[1730457482413,3.97341,2516.8,2516.1,3.97439]
[1730457482642,3.97194,2517.7,2516.5,3.97371]
[1730457482643,3.97309,2517.0,2516.5,3.97371]
[1730457482857,3.97307,2517.0,2516.5,0.55]
[1730457483218,3.97322,2516.9,2516.5,0.55]
[1730457483447,7.94557,2517.2,2516.5,0.55]
[1730457483659,3.97286,2517.1,2516.7,0.55]
[1730457484147,4.767317,2517.2,2516.7,0.55]
[1730457484349,3.97245,2517.4,2516.9,0.55]
[1730457484350,3.97251,2517.3,2516.9,0.55]
[1730457484526,3.97274,2517.2,2516.9,0.55]
[1730457484858,7.94548,2517.2,2516.9,0.55]
[1730457485330,3.97274,2517.2,2516.9,0.55]
[1730457485660,3.97282,2517.1,2516.9,0.55]
[1730457485828,3.97274,2517.2,2516.9,0.55]
[1730457486014,7.9455,2517.2,2516.9,0.55]
[1730457486221,3.97274,2517.2,2516.9,0.55]
[1730457486759,3.97282,2517.1,2516.9,0.55]
[1730457487134,3.97274,2517.2,2516.9,0.55]
[1730457487346,7.94555,2517.2,2516.9,0.55]
[1730457487852,8.740085,2517.2,2516.9,0.55]
[1730457488027,3.97274,2517.2,2516.9,0.55]
[1730457488237,3.97282,2517.1,2516.9,0.55]
[1730457488557,3.97282,2517.1,2516.4,3.97382]
[1730457488558,3.97324,2516.9,2516.4,4.77]
[1730457488756,7.94653,2516.9,2516.4,4.77]
[1730457488927,3.9734,2516.8,2516.4,0.7961]
[1730457489264,3.97353,2516.7,2516.4,0.7961]
[1730457489550,3.97369,2516.6,2516.4,0.7961]
[1730457489754,3.97369,2516.6,2516.1,3.9743]
[1730457489954,3.97378,2516.5,2516.1,0.7961]
[1730457490523,3.97349,2516.7,2516.1,4.77042]
[1730457490847,3.97373,2516.6,2516.1,4.77042]
[1730457491056,3.97373,2516.6,2516.2,0.55]
[1730457491255,4.41408765,2516.7,2516.2,0.55]
[1730457491464,4.41408765,2516.7,2516.2,4.52413]
[1730457491759,3.97362,2516.6,2516.2,0.55]
[1730457492052,4.41407765,2516.7,2516.2,4.52414]
[1730457492618,8.38761765,2516.7,2516.2,0.55]
[1730457492824,3.9737,2516.6,2516.2,0.55]
[1730457493024,3.97377,2516.5,2515.8,4.75107]
[1730457493543,3.97377,2516.5,2515.8,8.72586]
[1730457493544,3.97409,2516.3,2515.8,8.72586]
[1730457494357,7.94769,2516.5,2515.9,4.52461]
[1730457494551,3.97402,2516.4,2515.9,4.52461]
[1730457495188,3.97422,2516.3,2515.9,0.55]
[1730457495562,3.97437,2516.2,2515.9,0.55]
[1730457496075,3.97448,2516.1,2515.9,0.55]
[1730457496774,3.97442,2516.1,2515.9,0.55]
[1730457497850,3.97484,2515.9,2515.6,0.7939]
[1730457498051,3.97484,2515.9,2515.3,3.97564]
[1730457498052,3.97491,2515.8,2515.3,0.7939]
[1730457498286,4.372324,2515.9,2515.3,0.7939]
[1730457498496,4.372324,2515.9,2515.3,4.76953]
[1730457498795,3.97498,2515.8,2515.3,0.7939]
[1730457499501,4.372214,2515.9,2515.4,0.55]
[1730457499681,3.97456,2516.0,2515.4,4.5255]
[1730457500062,3.97473,2515.9,2515.4,0.55]
[1730457500268,3.97489,2515.8,2515.4,0.55]
[1730457500796,7.75001,2516.3,2515.3,0.7939]
[1730457500797,3.97513,2515.7,2515.3,0.7939]
[1730457500977,3.97549,2515.5,2514.9,0.7939]
[1730457501167,3.97521,2515.6,2514.9,4.77006]
[1730457501369,7.95051,2515.6,2514.9,4.77006]
[1730457501874,3.97543,2515.5,2514.9,4.77006]
[1730457502278,3.97543,2515.5,2515.0,0.55]
[1730457503281,3.97521,2515.6,2515.0,0.55]
[1730457503595,3.97521,2515.6,2515.0,4.52606]
[1730457503906,7.95051,2515.6,2515.0,1.49798816]
[1730457504075,3.97521,2515.6,2515.0,1.49798816]
[1730457504270,7.95052,2515.6,2515.0,5.47408816]
[1730457504471,7.95049,2515.6,2515.0,5.47408816]
[1730457504684,7.95049,2515.6,2515.0,1.49798816]
[1730457504880,7.95052,2515.6,2515.0,5.47407816]
[1730457505103,3.97521,2515.6,2515.0,5.47407816]
[1730457505705,4.75088,2515.8,2515.2,4.80741]
[1730457505706,3.97498,2515.8,2515.2,4.80741]
[1730457505902,3.97433,2516.2,2515.5,4.52527]
[1730457506203,3.9741,2516.3,2515.7,0.55]
[1730457506421,4.73781,2516.6,2515.9,0.55]
[1730457506706,4.73781,2516.6,2515.8,3.97477]
[1730457506707,3.97345,2516.7,2516.1,0.55]
[1730457506913,3.9737,2516.6,2516.1,0.55]
[1730457507624,3.97373,2516.6,2516.1,0.55]
[1730457508117,3.97351,2516.7,2516.1,5.055676]
[1730457508467,3.97367,2516.6,2516.1,1.081356]
[1730457508788,3.97351,2516.7,2516.1,1.081356]
[1730457509111,3.97351,2516.7,2516.1,5.055676]
[1730457509478,3.97351,2516.7,2516.2,3.97421]
[1730457509680,3.97351,2516.7,2516.3,0.55]
[1730457510015,3.97351,2516.7,2516.2,0.87289391]
[1730457510016,3.97363,2516.6,2516.2,0.55]
[1730457511276,0.8316,2516.9,2516.1,0.55]
[1730457511277,3.97378,2516.5,2516.1,0.55]
[1730457511478,3.97396,2516.4,2516.1,0.55]
[1730457511703,3.97424,2516.2,2516.1,0.55]
[1730457511895,3.97424,2516.2,2515.9,0.55]
[1730457512297,3.97409,2516.3,2515.9,0.55]
[1730457512718,3.97432,2516.2,2515.8,0.7693]
[1730457513080,3.97442,2516.1,2515.8,0.7693]
[1730457513308,3.97457,2516.0,2515.8,0.7693]
[1730457513980,4.769273,2516.1,2515.9,0.55]
[1730457514415,3.97441,2516.1,2515.9,0.55]
[1730457514997,7.94892,2516.1,2515.9,0.55]
[1730457515328,3.0,2515.9,2515.3,0.756]
[1730457515630,0.8047,2516.4,2515.3,0.756]
[1730457515631,3.9752,2515.6,2515.3,0.756]
[1730457516533,3.9752,2515.6,2514.9,3.97618]
[1730457516534,3.97582,2515.2,2514.4,0.7864]
[1730457516754,6.9763,2514.9,2514.4,0.7864]
[1730457518159,6.9763,2514.9,2514.0,3.97762]
[1730457518344,7.7428,2514.9,2514.8,0.1241306]
[1730457518540,9.235644,2514.9,2514.8,0.1241306]
[1730457528285,9.76966675,2514.9,2514.8,0.1241306]
[1730457532076,9.235644,2514.9,2514.8,0.1241306]
[1730457534820,8.469144,2514.9,2514.8,0.1241306]
[1730457537993,3.9763,2514.9,2514.8,0.1241306]
[1730457538722,3.97594,2515.2,2514.9,0.55]
[1730457539019,3.97531,2515.6,2515.1,0.55]
[1730457539254,0.7658,2515.9,2515.1,0.55]
[1730457539255,3.97582,2515.2,2515.1,0.55]
[1730457539452,3.97574,2515.3,2515.1,0.55]
[1730457539812,3.97513,2515.7,2515.2,0.7943]
[1730457540013,3.97535,2515.5,2515.3,0.55]
[1730457542065,3.97551,2515.4,2515.3,0.55]
[1730457542253,3.97535,2515.5,2515.3,0.55]
[1730457543048,3.97497,2515.8,2515.3,0.7981]
[1730457543255,7.94999,2515.8,2515.4,1.082382]
[1730457543415,3.97497,2515.8,2515.4,1.082382]
[1730457543925,7.95055,2515.6,2515.4,0.55]
[1730457544148,3.97526,2515.6,2515.4,0.55]
[1730457544344,7.95055,2515.6,2515.4,0.55]
[1730457544540,3.97526,2515.6,2515.4,0.55]
[1730457544869,7.94998,2515.8,2515.4,0.55]
[1730457545072,7.94994,2515.8,2515.4,0.55]
[1730457545227,3.97508,2515.7,2515.4,0.55]
[1730457545650,3.97531,2515.6,2515.4,0.55]
[1730457545836,3.97551,2515.4,2515.3,0.7981]
[1730457546049,3.97551,2515.4,2515.3,1.3481]
[1730457546789,6.97535,2515.5,2514.8,4.1005506]
[1730457546790,3.97572,2515.3,2515.0,0.55]
[1730457547150,7.95153,2515.3,2515.0,0.55]
[1730457547874,3.97572,2515.3,2515.0,0.55]
[1730457548080,3.97582,2515.2,2515.0,0.55]
[1730457548473,3.97572,2515.3,2515.0,0.55]
[1730457548681,3.97557,2515.4,2515.2,0.55]
[1730457548847,7.95118,2515.4,2515.2,0.55]
[1730457549165,3.97557,2515.4,2515.2,0.55]
[1730457549366,3.97535,2515.5,2515.2,0.55]
[1730457550184,3.97552,2515.4,2515.2,0.55]
[1730457550748,7.9506,2515.6,2515.2,0.55]
[1730457550955,7.95058,2515.6,2515.2,0.55]
[1730457551170,3.97558,2515.4,2515.2,0.55]
[1730457551370,3.97543,2515.5,2515.3,0.7876]
[1730457551572,3.97528,2515.6,2515.3,0.7876]
[1730457551763,3.97551,2515.4,2515.3,1.3376]
[1730457551961,0.697528,2515.6,2515.4,0.55]
[1730457551962,3.97526,2515.6,2515.4,0.55]
[1730457552162,3.97523,2515.6,2515.4,0.55]
[1730457552393,3.97504,2515.7,2515.4,0.55]
[1730457552597,0.8308,2516.3,2515.4,0.55]
[1730457552598,3.97535,2515.5,2515.4,0.55]
[1730457555590,3.97586,2515.2,2514.9,0.8007]
[1730457555895,3.97599,2515.1,2514.9,0.8007]
[1730457556195,3.97575,2515.3,2515.0,0.55]
[1730457556653,3.97563,2515.4,2515.0,0.55]
[1730457556861,3.97573,2515.3,2515.0,0.55]
[1730457557371,3.97586,2515.2,2515.0,0.55]
[1730457558069,3.97598,2515.1,2515.0,0.55]
[1730457559275,4.771161,2515.1,2514.9,0.8007]
[1730457559593,3.97614,2515.0,2514.9,0.55]
[1730457560096,3.97601,2515.1,2514.9,0.55]
[1730457560300,3.97584,2515.2,2514.9,0.55]
[1730457560599,3.8318,2515.7,2514.9,0.55]
[1730457560784,3.97607,2515.1,2514.9,0.55]
[1730457561454,3.97583,2515.2,2514.9,0.55]
[1730457561881,3.97614,2515.0,2514.9,0.55]
[1730457562113,7.95191,2515.2,2514.9,0.55]
[1730457562319,3.97614,2515.0,2514.9,0.55]
[1730457565734,6.9763,2514.9,2514.8,0.1241306]
[1730457566284,3.9763,2514.9,2514.8,0.1241306]
[1730457567085,3.9763,2514.9,2514.8,0.6741306]
[1730457568425,6.9763,2514.9,2514.8,0.1241306]
[1730457568814,7.7945,2514.9,2514.8,0.1241306]
[1730457569811,3.9763,2514.9,2514.8,0.1241306]
[1730457570203,3.9763,2514.9,2514.8,0.6741306]
[1730457571846,3.9763,2514.9,2514.8,0.1241306]
[1730457572544,6.9763,2514.9,2514.8,0.1241306]
[1730457574929,8.071544,2514.9,2514.8,0.1241306]
[1730457583233,3.9763,2514.9,2514.8,0.1241306]
[1730457583635,3.9763,2514.9,2514.8,1.4768306]
[1730457583937,3.97614,2515.0,2514.9,0.55]
[1730457584632,7.9521,2515.1,2514.9,0.55]
[1730457585027,3.97601,2515.1,2514.9,0.55]
[1730457585941,3.97614,2515.0,2514.9,0.55]
[1730457586253,3.97601,2515.1,2514.9,0.55]
[1730457586755,3.97614,2515.0,2514.9,0.55]
[1730457591974,3.9763,2514.9,2514.8,0.6741306]
[1730457595952,6.9763,2514.9,2514.8,0.1241306]
[1730457596345,3.97614,2515.0,2514.8,0.1241306]
[1730457596684,6.97568,2515.3,2514.9,0.7553]
[1730457597183,3.97584,2515.2,2515.0,0.55]
[1730457597791,4.77943,2515.4,2515.0,0.55]
[1730457598074,0.8038,2515.6,2515.0,0.55]
[1730457598281,3.0,2515.4,2515.0,0.55]
[1730457598476,6.97558,2515.4,2515.0,0.55]
[1730457598687,3.97568,2515.3,2515.0,0.55]
[1730457599342,7.95146,2515.3,2515.0,0.55]
[1730457599746,3.97568,2515.3,2515.0,0.55]
[1730457599946,3.97582,2515.2,2515.0,0.55]
[1730457600966,3.97598,2515.1,2515.0,0.55]
[1730457601391,3.97627,2515.0,2514.9,0.55]
[1730457602079,3.97627,2515.0,2514.8,0.6741306]
[1730457602293,7.95248,2515.0,2514.8,0.6741306]
[1730457602480,3.9763,2514.9,2514.8,0.6741306]
[1730457603484,6.9763,2514.9,2514.8,0.6741306]
[1730457603689,8.20422959,2514.9,2514.8,0.1241306]
[1730457607465,8.97282959,2514.9,2514.8,0.1241306]
[1730457610659,3.9763,2514.9,2514.8,0.1241306]
[1730457610904,3.97624,2515.0,2514.9,0.55]
[1730457610905,3.97614,2515.0,2514.9,0.55]
[1730457611493,3.97614,2515.0,2514.8,0.1241306]
[1730457611699,3.9763,2514.9,2514.8,0.1241306]
[1730457611864,4.771544,2514.9,2514.8,0.1241306]
[1730457612071,7.771544,2514.9,2514.8,0.1241306]
[1730457614567,6.9763,2514.9,2514.8,0.1241306]
[1730457614769,3.97594,2515.2,2514.9,0.55]
[1730457615007,7.9519,2515.2,2514.9,0.55]
[1730457615172,3.97594,2515.2,2514.9,0.55]
[1730457615379,3.97614,2515.0,2514.9,0.55]
[1730457616015,3.97614,2515.0,2514.8,0.8821306]
[1730457616373,3.9763,2514.9,2514.8,1.4321306]
[1730457616611,3.9763,2514.9,2514.8,0.6741306]
[1730457617069,7.771544,2514.9,2514.8,0.6741306]
[1730457618315,6.9763,2514.9,2514.8,0.6741306]
[1730457620518,3.0,2514.9,2514.8,0.6741306]
[1730457620678,6.9763,2514.9,2514.8,0.6741306]
[1730457621416,6.97606,2515.1,2514.8,0.6741306]
[1730457621579,6.9763,2514.9,2514.8,0.6741306]
[1730457622013,3.0,2514.9,2514.8,0.6741306]
[1730457625589,3.0,2514.9,2514.8,0.1241306]
[1730457625590,8.492914,2514.9,2514.8,0.1241306]
[1730457626388,3.697614,2514.9,2514.8,0.1241306]
[1730457626579,6.9763,2514.9,2514.8,0.1241306]
[1730457627777,3.0,2514.9,2514.8,0.1241306]
[1730457628416,6.9763,2514.9,2514.8,0.1241306]
[1730457630789,4.79493,2515.2,2514.8,0.1241306]
[1730457630990,7.95185,2515.2,2514.8,0.9411306]
[1730457631510,3.976,2515.1,2514.8,0.9411306]
[1730457631879,3.97559,2515.4,2514.9,4.52628]
[1730457632114,3.97519,2515.6,2514.8,0.1241306]
[1730457632115,3.97614,2515.0,2514.8,0.1241306]
[1730457632280,3.9763,2514.9,2514.8,0.1241306]
[1730457633786,3.9763,2514.9,2514.8,0.19247324]
[1730457636523,3.9763,2514.9,2514.8,1.01487324]
[1730457636684,3.97593,2515.2,2514.8,1.56487324]
[1730457637011,3.97614,2515.0,2514.9,0.55]
[1730457637424,3.97614,2515.0,2514.9,0.61599534]
[1730457638540,3.97559,2515.4,2514.9,0.61599534]
[1730457638731,1.52406055,2515.6,2515.2,0.8194]
[1730457638732,3.97526,2515.6,2515.2,0.8194]
[1730457638884,0.8312,2515.8,2515.3,4.52566]
[1730457638885,3.97497,2515.8,2515.3,4.52566]
[1730457639084,3.97504,2515.7,2515.3,4.52557]
[1730457639303,3.97504,2515.7,2515.4,0.06563863]
[1730457639502,3.97504,2515.7,2515.5,0.55]
[1730457639716,3.97519,2515.6,2515.5,0.55]
[1730457639918,3.97519,2515.6,2515.3,0.55]
[1730457640493,4.80577,2516.0,2515.3,0.55]
[1730457640494,3.97489,2515.8,2515.3,0.55]
[1730457640716,3.97489,2515.8,2515.3,5.060175]
[1730457641009,7.94986,2515.8,2515.3,5.060175]
[1730457641224,3.97489,2515.8,2515.3,1.084535]
[1730457641721,3.97515,2515.7,2515.3,1.084535]
[1730457642327,3.97489,2515.8,2515.3,1.084535]
[1730457642533,3.97522,2515.6,2515.3,0.55]
[1730457642727,0.8312,2516.0,2515.3,0.55]
[1730457642933,3.97544,2515.5,2515.3,0.55]
[1730457644010,3.97513,2515.7,2515.3,0.55]
[1730457644549,3.9752,2515.6,2515.3,0.55]
[1730457644695,3.97476,2515.9,2515.5,0.8199]
[1730457644895,3.9748,2515.9,2515.6,0.55]
[1730457645094,3.97487,2515.8,2515.4,0.55]
[1730457645292,3.9753,2515.6,2515.4,0.55]
[1730457645530,3.97535,2515.5,2515.4,0.55]
[1730457646099,3.97535,2515.5,2515.0,0.7851]
[1730457646100,0.795065,2515.5,2515.0,0.7851]
[1730457646295,3.97598,2515.1,2514.8,0.1241306]
[1730457646502,3.97598,2515.1,2514.9,0.06559452]
[1730457647407,3.97576,2515.3,2514.9,0.06559452]
[1730457647793,3.97592,2515.2,2515.0,0.55]
[1730457648215,3.97582,2515.2,2515.1,0.0654841]
[1730457648416,4.770978,2515.2,2515.1,0.0654841]
[1730457649514,8.559778,2515.2,2515.1,0.0654841]
[1730457649720,4.770978,2515.2,2514.8,0.9155306]
[1730457649905,3.97598,2515.1,2514.9,0.06559452]
[1730457650712,3.97571,2515.3,2514.9,0.06559452]
[1730457650905,3.97548,2515.5,2515.0,3.97606]
[1730457651106,3.97548,2515.5,2515.3,0.55]
[1730457651509,3.97472,2515.9,2515.5,0.55]
[1730457651903,3.97456,2516.0,2515.6,0.06528879]
[1730457652056,3.97503,2515.7,2515.6,0.61528879]
[1730457653041,3.9749,2515.8,2515.6,0.06528879]
[1730457653250,3.9219783,2515.9,2515.7,0.8114]
[1730457653613,3.9219783,2515.9,2515.8,0.06512899]
[1730457658768,3.97464,2516.0,2515.8,0.06512899]
[1730457658945,3.97464,2516.0,2515.7,0.8114]
[1730457659144,3.97464,2516.0,2515.9,0.06488393]
[1730457659422,3.97464,2516.0,2515.7,1.290057]
[1730457659548,3.97464,2516.0,2515.9,0.06488393]
[1730457659752,3.97464,2516.0,2515.7,1.290057]
[1730457659975,3.97433,2516.2,2515.9,0.06488393]
[1730457660177,4.38709729,2517.6,2516.1,0.7996]
[1730457660178,3.97415,2516.3,2516.1,0.7996]
[1730457660381,0.79482,2516.3,2516.1,0.7996]
[1730457660675,3.97418,2516.3,2516.2,0.06471844]
[1730457662242,3.97373,2516.6,2516.2,0.06471844]
[1730457662844,3.97341,2516.8,2516.3,4.52406]
[1730457663046,3.97341,2516.8,2516.4,0.7715]
[1730457663471,3.97338,2516.8,2516.5,0.06449577]
[1730457664701,3.97341,2516.8,2516.5,0.06449577]
[1730457665173,7.94682,2516.8,2516.5,0.06449577]
[1730457665374,3.9731,2517.0,2516.5,0.06449577]
[1730457665695,3.9732,2516.9,2516.5,0.06449577]
[1730457666067,3.97276,2517.2,2516.7,0.7992]
[1730457666590,3.97318,2516.9,2516.8,0.06420295]
[1730457666757,3.97318,2516.9,2516.7,0.7992]
[1730457666961,3.97291,2517.1,2516.8,0.06420295]
[1730457666962,3.97298,2517.0,2516.8,0.06420295]
[1730457667160,3.97353,2516.7,2516.4,0.55]
[1730457667661,3.97379,2516.5,2516.0,0.7584]
[1730457668564,0.7645,2516.8,2516.0,0.7584]
[1730457668565,3.97362,2516.6,2516.0,0.7584]
[1730457668764,3.97385,2516.5,2516.0,4.73295]
[1730457668965,3.97385,2516.5,2516.1,0.55]
[1730457670568,3.97362,2516.6,2516.1,0.55]
[1730457670769,3.97362,2516.6,2516.1,4.5244]
[1730457670969,3.97377,2516.5,2516.1,0.55]
[1730457672607,3.97362,2516.6,2516.1,1.475754]
[1730457672764,3.97395,2516.4,2516.1,0.55]
[1730457672966,0.7645,2516.8,2516.0,0.7584]
[1730457673174,3.97372,2516.6,2515.8,0.788]
[1730457673375,3.97444,2516.1,2515.8,0.788]
[1730457678222,3.97415,2516.3,2515.8,0.788]
[1730457678431,3.97338,2516.8,2516.2,0.7762]
[1730457678432,3.97365,2516.6,2516.2,0.7762]
[1730457678629,3.97356,2516.7,2516.2,4.75042]
[1730457678849,3.97331,2516.8,2516.3,4.03845502]
[1730457679050,0.8261,2517.0,2516.5,3.97365]
[1730457679051,3.973,2517.0,2516.5,3.97365]
[1730457679375,3.97283,2517.1,2516.6,4.81393259]
[1730457679528,7.94549,2517.2,2516.7,3.97337]
[1730457679730,4.767289,2517.2,2516.7,3.97337]
[1730457680065,4.767289,2517.2,2516.8,0.06412232]
[1730457680279,3.9729,2517.1,2516.6,0.7762]
[1730457680569,3.97298,2517.0,2516.9,0.06406719]
[1730457680722,3.97298,2517.0,2516.6,0.7762]
[1730457680929,3.97298,2517.0,2516.7,0.06407345]
[1730457681151,3.97266,2517.2,2516.7,0.06407345]
[1730457682067,3.97282,2517.1,2516.7,0.06407345]
[1730457682269,3.97282,2517.1,2516.7,4.03752345]
[1730457682555,3.97282,2517.1,2516.7,0.06407345]
[1730457682762,3.97299,2517.0,2516.7,0.06407345]
[1730457682960,3.97301,2517.0,2516.7,0.06407345]
[1730457683925,7.94576,2517.1,2516.7,0.06407345]
[1730457684122,3.97303,2517.0,2516.7,0.06407345]
[1730457684565,3.97282,2517.1,2516.7,0.06407345]
[1730457685252,7.94573,2517.1,2516.7,0.06407345]
[1730457685630,3.973,2517.0,2516.7,0.06407345]
[1730457686176,3.97329,2516.8,2516.7,0.06407345]
[1730457686372,0.794582,2517.0,2516.7,0.06407345]
[1730457686373,3.97326,2516.9,2516.7,0.06407345]
[1730457686529,7.94651,2516.9,2516.7,0.06407345]
[1730457686866,3.97329,2516.8,2516.7,0.06407345]
[1730457687223,3.97325,2516.9,2516.7,0.06407345]
[1730457687659,4.76799,2517.0,2516.7,0.06407345]
[1730457687864,3.97316,2516.9,2516.7,0.06407345]
[1730457688044,0.795,2517.0,2516.7,0.06407345]
[1730457688045,4.76805,2517.0,2516.7,0.06407345]
[1730457688362,3.97305,2517.0,2516.7,0.06407345]
[1730457688767,3.97264,2517.3,2516.7,4.9161488]
[1730457688924,3.97273,2517.2,2516.7,4.9161488]
[1730457689123,3.97264,2517.3,2516.8,0.55]
[1730457689326,3.97264,2517.3,2516.8,4.52327]
[1730457689526,3.97264,2517.3,2516.9,0.05966563]
[1730457690567,4.76735,2517.4,2516.9,4.03277563]
[1730457690726,3.97252,2517.3,2516.9,0.64822599]
[1730457691627,4.76736,2517.4,2516.9,0.64822599]
[1730457691877,3.97297,2517.1,2516.9,0.05966563]
[1730457692228,0.795,2517.4,2516.4,4.77703]
[1730457692229,3.97298,2517.0,2516.4,4.77703]
[1730457692539,3.97331,2516.8,2516.4,4.77703]
[1730457692925,4.74518,2517.0,2516.4,4.77703]
[1730457693131,3.97331,2516.8,2516.4,4.77703]
[1730457693363,3.97331,2516.8,2516.5,0.55]
[1730457693973,3.97331,2516.8,2516.6,0.05764575]
[1730457695054,3.97345,2516.7,2516.6,0.05764575]
[1730457695284,3.97379,2516.5,2516.1,0.8007]
[1730457695650,7.94771,2516.5,2516.1,0.8007]
[1730457695853,3.97379,2516.5,2516.1,0.8007]
[1730457696083,3.97394,2516.4,2516.1,0.8007]
[1730457696288,3.97379,2516.5,2516.1,0.8007]
[1730457696955,0.7739,2516.6,2516.1,4.775]
[1730457697182,4.74714,2516.9,2516.3,4.52401]
[1730457697385,4.74714,2516.9,2516.4,3.97392]
[1730457697699,7.94652,2516.9,2516.4,3.97392]
[1730457697856,3.9733,2516.8,2516.4,3.97392]
[1730457698051,3.9733,2516.8,2516.3,0.55]
[1730457698257,3.9733,2516.8,2516.3,4.52407]
[1730457698477,3.97324,2516.9,2516.3,0.55]
[1730457698757,7.94653,2516.9,2516.3,4.52407]
[1730457699055,3.97334,2516.8,2516.3,4.52407]
[1730457699515,3.97352,2516.7,2516.3,4.52407]
[1730457699785,3.97352,2516.7,2516.2,4.52422]
[1730457700197,4.768197,2516.7,2516.2,4.52415]
[1730457700352,3.97352,2516.7,2516.2,4.52415]
[1730457701804,3.97352,2516.7,2516.2,4.52414]
[1730457702798,3.97338,2516.8,2516.3,3.974]
[1730457704287,3.97325,2516.9,2516.3,3.974]
[1730457704699,3.97325,2516.9,2516.4,3.9739]
[1730457704871,7.94652,2516.9,2516.4,3.9739]
[1730457705068,3.97325,2516.9,2516.3,3.97407]
[1730457705296,3.97325,2516.9,2516.3,4.506547]
[1730457705603,3.97336,2516.8,2516.3,4.506547]
[1730457705802,3.97307,2517.0,2516.3,4.506467]
[1730457706015,3.97333,2516.8,2516.4,3.97391]
[1730457706303,3.97326,2516.9,2516.5,3.97376]
[1730457706505,3.97326,2516.9,2516.5,0.7659]
[1730457706898,3.97326,2516.9,2516.5,4.73964]
[1730457707209,7.94653,2516.9,2516.5,0.7659]
[1730457707409,3.9733,2516.8,2516.5,0.7659]
[1730457708315,3.9733,2516.8,2516.3,8.70696]
[1730457708520,3.9733,2516.8,2516.3,5.658656]
[1730457708681,3.97347,2516.7,2516.3,5.658656]
[1730457709014,3.97347,2516.7,2516.4,0.0427175]
[1730457709910,3.97326,2516.9,2516.4,0.0427175]
[1730457710513,3.97326,2516.9,2516.4,3.97393]
[1730457711015,3.97332,2516.8,2516.4,3.97393]
[1730457711215,3.97332,2516.8,2516.3,4.73307]
[1730457713413,3.97346,2516.7,2516.3,4.73307]
[1730457714020,3.97331,2516.8,2516.3,4.73307]
[1730457714919,3.97326,2516.9,2516.3,0.759]
[1730457715124,3.97345,2516.7,2516.3,0.759]
[1730457715486,3.97345,2516.7,2516.3,4.73306]
[1730457719417,3.97378,2516.5,2516.4,0.55]
[1730457719623,3.974,2516.4,2515.9,0.759]
[1730457719838,3.97384,2516.5,2516.0,7.94912]
[1730457720014,3.97384,2516.5,2516.0,4.03976692]
[1730457720185,3.97384,2516.5,2516.0,8.01424692]
[1730457720385,3.97384,2516.5,2516.1,3.9744]
[1730457720613,3.97393,2516.4,2516.0,0.06520692]
[1730457720786,3.97393,2516.4,2516.1,0.0651861]
[1730457720999,4.768707,2516.4,2516.0,0.55]
[1730457721199,3.97393,2516.4,2516.1,0.0651861]
[1730457721612,7.94774,2516.5,2516.1,0.0651861]
[1730457721933,3.97384,2516.5,2516.1,0.0651861]
[1730457722221,3.97384,2516.5,2516.0,4.52447]
[1730457722426,3.97393,2516.4,2516.1,0.0579432]
[1730457722631,8.426511,2516.6,2516.1,0.0579432]
[1730457722840,3.97402,2516.4,2516.1,0.0579432]
[1730457723016,3.9741,2516.3,2516.1,0.0579432]
[1730457724089,3.97424,2516.2,2516.1,0.0579432]
[1730457724293,3.97467,2516.0,2515.6,0.7651]
[1730457724533,3.97482,2515.9,2515.6,0.7651]
[1730457725136,3.97467,2516.0,2515.6,0.7651]
[1730457725347,8.346807,2516.0,2515.6,0.7651]
[1730457726212,3.97487,2515.9,2515.6,0.7651]
[1730457726797,3.97499,2515.8,2515.3,0.7728]
[1730457727224,7.95,2515.8,2515.3,4.74844]
[1730457727601,3.97499,2515.8,2515.3,4.74844]
[1730457728103,3.97499,2515.8,2515.4,0.55]
[1730457728104,3.97495,2515.8,2515.4,0.55]
[1730457728619,7.94994,2515.8,2515.4,0.55]
[1730457729021,3.97495,2515.8,2515.4,0.55]
[1730457729505,7.94996,2515.8,2515.4,0.55]
[1730457729702,0.397467,2516.0,2515.3,0.7728]
[1730457729918,3.97544,2515.5,2515.3,0.7728]
[1730457730245,0.8316,2515.9,2515.2,0.05961884]
[1730457730445,3.97566,2515.3,2515.2,0.05961884]
[1730457731440,3.97552,2515.4,2515.2,0.05961884]
[1730457731654,3.97529,2515.6,2515.2,0.05961884]
[1730457731940,3.9744,2516.1,2515.4,3.97541]
[1730457732104,3.9744,2516.1,2515.6,3.97519]
[1730457732437,3.97462,2516.0,2515.5,1.57369656]
[1730457732605,3.97456,2516.0,2515.5,1.57369656]
[1730457733110,3.9744,2516.1,2515.6,4.52516]
[1730457733439,3.9744,2516.1,2515.6,5.13504566]
[1730457733838,3.9744,2516.1,2515.6,1.15988566]
[1730457734133,3.9744,2516.1,2515.6,4.52519]
[1730457734742,3.9744,2516.1,2515.7,3.97503]
[1730457735317,3.97425,2516.2,2515.8,0.7901]
[1730457735907,3.97443,2516.1,2515.8,0.7901]
[1730457736510,7.94863,2516.2,2515.8,0.7901]
[1730457736941,3.97448,2516.1,2515.8,0.7901]
[1730457737242,3.97425,2516.2,2515.8,0.7901]
[1730457737631,3.97476,2515.9,2515.5,0.8044]
[1730457738619,3.97476,2515.9,2515.5,4.77973]
[1730457741038,7.94905,2516.1,2515.5,4.77973]